bitfinex-derivatives/quotes_SOLF0:USTF0_20241229
["timestamp","ask_amount","ask_price","bid_price","bid_amount"]
[1735469849045,2.5454,196.75,196.71,4.1187]
[1735469853448,2.5456,196.74,196.71,4.1187]
[1735469853644,5.3656,196.74,196.71,4.1187]
[1735469858249,2.82,196.74,196.71,1.5729]
[1735469858457,2.82,196.74,196.72,2.5457]
[1735469864054,5.3655,196.74,196.71,4.1187]
[1735469865652,2.82,196.74,196.71,1.5729]
[1735469865956,2.82,196.74,196.72,2.5457]
[1735469866658,2.82,196.74,196.67,7.05109016]
[1735469866853,2.82,196.74,196.73,2.5456]
[1735469869660,2.82,196.74,196.73,7.04708116]
[1735469869959,2.82,196.74,196.73,2.5456]
[1735469870159,2.82,196.74,196.73,7.04708036]
[1735469870660,2.82,196.74,196.73,7.04737583]
[1735469871656,2.8,196.78,196.75,2.5452]
[1735469871860,2.8,196.78,196.7,1.596]
[1735469872060,2.8,196.78,196.71,8.56079858]
[1735469872261,2.8,196.78,196.72,8.56079858]
[1735469872462,2.8,196.78,196.73,4.50206515]
[1735469872661,2.8,196.78,196.7,1.596]
[1735469872956,2.8,196.78,196.71,8.56152523]
[1735469873156,2.8,196.78,196.72,8.56152523]
[1735469873357,2.8,196.78,196.73,4.50244711]
[1735469873557,2.8,196.78,196.7,1.596]
[1735469873860,2.5451,196.77,196.73,2.5455]
[1735469874562,2.5451,196.77,196.74,2.5455]
[1735469876363,2.5452,196.76,196.73,2.5455]
[1735469877959,2.5452,196.76,196.7,4.1419]
[1735469878164,2.8,196.78,196.71,8.56486864]
[1735469878364,2.8,196.78,196.7,4.1419]
[1735469878567,2.5457,196.73,196.7,1.596]
[1735469878966,5.3457,196.73,196.7,1.596]
[1735469879465,5.3457,196.73,196.7,4.142]
[1735469889870,2.8,196.73,196.71,2.5458]
[1735469891880,2.8,196.73,196.7,4.1419]
[1735469895184,5.3456,196.73,196.7,4.1419]
[1735469898788,2.8,196.73,196.71,2.5458]
[1735469899179,45.35688785,196.8,196.7,1.596]
[1735469899385,2.5452,196.77,196.71,8.56295428]
[1735469899589,2.8,196.79,196.72,8.5625607]
[1735469899789,2.8,196.79,196.7,1.596]
[1735469899988,2.545,196.78,196.74,2.5454]
[1735469901398,2.8,196.77,196.74,2.5454]
[1735469901580,5.3451,196.77,196.74,2.5454]
[1735469903396,2.5451,196.77,196.74,2.5454]
[1735469905490,45.35688785,196.8,196.77,2.545]
[1735469905896,5.3447,196.81,196.77,2.545]
[1735469906196,2.8,196.81,196.71,2.8]
[1735469906392,2.8,196.81,196.72,8.55898808]
[1735469906592,2.8,196.81,196.73,8.55898808]
[1735469906794,2.8,196.81,196.74,8.55898808]
[1735469906996,2.8,196.81,196.75,10.09719237]
[1735469907293,2.8,196.81,196.76,8.55729237]
[1735469907490,2.8,196.81,196.77,4.05607325]
[1735469907797,2.8,196.81,196.75,1.5399]
[1735469908099,2.5442,196.84,196.76,8.55175204]
[1735469908394,2.5442,196.84,196.77,10.09735204]
[1735469908696,2.5442,196.84,196.77,1.5456]
[1735469908993,2.5442,196.84,196.79,2.5448]
[1735469909994,2.5442,196.84,196.77,1.5456]
[1735469910201,2.5442,196.84,196.8,2.5447]
[1735469915199,2.5446,196.81,196.77,1.5456]
[1735469916200,2.5446,196.81,196.77,4.0906]
[1735469918902,2.5446,196.81,196.78,2.5449]
[1735469919593,2.8,196.85,196.77,1.5456]
[1735469919798,2.5444,196.83,196.79,2.5448]
[1735469925004,2.9864867,196.88,196.77,1.5456]
[1735469925311,1.5288867,196.88,196.77,1.5456]
[1735469925512,2.8,196.87,196.77,1.5456]
[1735469926011,2.5438,196.87,196.84,2.5441]
[1735469926406,4.3288867,196.88,196.84,2.5441]
[1735469926710,46.68473903,196.89,196.86,2.5439]
[1735469927608,49.22833903,196.89,196.86,2.5439]
[1735469928012,46.42833903,196.89,196.86,2.5439]
[1735469929003,2.5436,196.89,196.86,2.5439]
[1735469929206,1.5214,196.94,196.86,2.5439]
[1735469929411,2.5432,196.92,196.88,2.5436]
[1735469929607,2.8,196.93,196.88,2.5436]
[1735469929814,110.03907863,197.41,196.82,4.47616476]
[1735469930017,6.70942801,197.0,196.89,2.5435]
[1735469930214,0.82602801,196.99,196.89,2.5435]
[1735469931417,2.5426,196.96,196.89,2.5435]
[1735469931617,2.8,196.95,196.89,2.5435]
[1735469933317,2.5431,196.93,196.84,1.4758]
[1735469933519,2.5431,196.93,196.88,2.5436]
[1735469933919,2.8,196.95,196.88,2.5436]
[1735469934220,2.5432,196.92,196.88,2.5436]
[1735469935528,5.343,196.93,196.89,2.5435]
[1735469936122,5.3429,196.94,196.9,2.5434]
[1735469937022,2.543,196.93,196.9,2.5434]
[1735469937322,2.8,196.94,196.84,1.4758]
[1735469937526,2.5439,196.87,196.84,1.4758]
[1735469937721,2.8,196.88,196.84,1.4758]
[1735469938523,2.5439,196.87,196.84,1.4758]
[1735469940333,2.8,196.88,196.84,1.4758]
[1735469940533,2.5439,196.86,196.82,2.5444]
[1735469942738,2.8,196.88,196.78,1.551]
[1735469944441,2.5443,196.84,196.8,2.5447]
[1735469944736,2.5443,196.84,196.78,1.551]
[1735469944935,2.8,196.88,196.79,4.48002261]
[1735469945134,2.8,196.88,196.78,1.551]
[1735469945343,2.8,196.88,196.79,4.48028162]
[1735469945542,2.5441,196.85,196.81,2.5446]
[1735469946138,2.8,196.88,196.81,2.5446]
[1735469946345,2.5442,196.84,196.81,2.5446]
[1735469948344,2.8,196.88,196.78,1.551]
[1735469948650,2.544,196.86,196.82,2.5444]
[1735469948848,2.544,196.86,196.78,1.551]
[1735469949043,2.544,196.86,196.82,2.5443]
[1735469950445,2.544,196.86,196.78,1.551]
[1735469950644,2.544,196.86,196.83,2.5443]
[1735469951447,2.5438,196.87,196.83,2.5443]
[1735469951747,2.8,196.88,196.81,2.5446]
[1735469953450,1.5805,196.92,196.78,1.551]
[1735469953750,2.5441,196.85,196.82,2.5444]
[1735469957755,2.8,196.86,196.82,2.5444]
[1735469957948,5.344,196.86,196.82,2.5444]
[1735469958952,5.344,196.86,196.78,1.551]
[1735469959153,5.344,196.86,196.83,2.5443]
[1735469969458,2.8,196.86,196.78,1.551]
[1735469969665,2.8,196.86,196.84,2.5443]
[1735469974162,1.5805,196.92,196.78,8.60209016]
[1735469974467,2.5437,196.89,196.86,2.544]
[1735469975869,2.5438,196.88,196.84,2.5442]
[1735469976070,2.8,196.91,196.79,7.05109016]
[1735469976368,2.8,196.91,196.8,8.547265]
[1735469976668,2.8,196.91,196.82,2.5445]
[1735469977365,2.5442,196.85,196.82,2.5445]
[1735469984673,2.8,196.86,196.78,1.551]
[1735469984974,2.8,196.86,196.85,2.5441]
[1735469987576,5.3441,196.86,196.82,2.5444]
[1735469988273,5.3441,196.86,196.79,7.05109016]
[1735469988474,2.5443,196.85,196.8,8.55126963]
[1735469988774,2.5443,196.85,196.81,8.55126963]
[1735469988974,2.5443,196.85,196.82,8.55126963]
[1735469989170,2.5443,196.85,196.78,8.60209016]
[1735469989371,2.8,196.86,196.79,8.5538701]
[1735469989572,2.8,196.86,196.8,8.5538701]
[1735469989773,2.8,196.86,196.83,2.5444]
[1735469992979,2.544,196.87,196.83,2.5444]
[1735469993274,5.344,196.87,196.83,2.5444]
[1735469993478,5.344,196.87,196.79,7.05109016]
[1735469993679,5.344,196.87,196.84,2.5443]
[1735470002185,2.8,196.87,196.84,2.5443]
[1735470002788,2.8,196.87,196.86,2.544]
[1735470004492,2.8,196.87,196.78,29.75536065]
[1735470004688,2.8,196.87,196.79,8.56185084]
[1735470004890,2.8,196.87,196.8,8.56185084]
[1735470005089,2.8,196.87,196.81,8.56185084]
[1735470005391,2.8,196.87,196.82,8.56185084]
[1735470005591,2.8,196.87,196.83,8.56185084]
[1735470005891,2.8,196.87,196.78,29.75536065]
[1735470006094,2.8,196.87,196.79,8.5627859]
[1735470006295,2.8,196.87,196.8,8.5627859]
[1735470006497,1.5797,196.93,196.81,8.5627859]
[1735470006688,2.8,196.92,196.82,8.5627859]
[1735470006892,2.8,196.93,196.83,11.6492859]
[1735470007092,2.8,196.93,196.84,10.1621859]
[1735470007287,2.8,196.93,196.85,8.5627859]
[1735470007495,2.8,196.93,196.84,1.5994]
[1735470007697,2.8,196.93,196.85,8.55730789]
[1735470007898,8.31027283,196.96,196.86,8.55730789]
[1735470008097,2.8,196.95,196.84,1.5994]
[1735470008299,2.8,196.95,196.85,8.55696114]
[1735470008499,9.77807283,196.98,196.86,4.49992209]
[1735470008699,3.62613913,196.97,196.84,1.5994]
[1735470008897,0.82613913,196.96,196.85,8.55716443]
[1735470009096,2.8,196.97,196.86,8.5556226]
[1735470009297,2.8,196.97,196.87,8.5556226]
[1735470009600,2.8,196.97,196.84,1.5994]
[1735470009799,2.8,196.97,196.85,8.54880417]
[1735470010000,2.8,196.97,196.86,8.54880417]
[1735470010197,2.8,196.97,196.87,8.54880417]
[1735470010393,2.8,196.97,196.88,4.49560207]
[1735470010598,2.8,196.97,196.84,1.5994]
[1735470010796,2.8,196.97,196.85,8.54364366]
[1735470011000,2.8,196.97,196.86,8.54364366]
[1735470011299,2.8,196.97,196.87,8.54328378]
[1735470011503,2.8,196.97,196.88,4.49268762]
[1735470011699,2.8,196.97,196.84,1.5994]
[1735470011900,2.8,196.97,196.85,8.54016315]
[1735470012100,2.8,196.97,196.86,8.54016315]
[1735470012298,2.8,196.97,196.87,8.54016315]
[1735470012500,2.8,196.97,196.84,1.5994]
[1735470012699,2.8,196.97,196.85,4.04813383]
[1735470013009,1.4678,196.98,196.86,8.53809606]
[1735470013200,1.4678,196.98,196.87,8.53809606]
[1735470013201,2.8,196.97,196.87,8.53809606]
[1735470013400,2.8,196.97,196.88,4.48996223]
[1735470013596,2.8,196.96,196.85,2.8]
[1735470013796,2.8,196.96,196.86,8.53426438]
[1735470014102,2.8,196.96,196.85,2.8]
[1735470014103,2.8,196.96,196.87,8.53426438]
[1735470014302,2.8,196.96,196.88,8.53426438]
[1735470014499,2.8,196.97,196.85,2.8]
[1735470014700,2.8,196.97,196.86,8.53163941]
[1735470014899,2.8,196.97,196.87,8.53163941]
[1735470015204,2.8,196.97,196.88,4.48656342]
[1735470015399,2.8,196.97,196.85,2.8]
[1735470015602,2.8,196.97,196.86,8.52917802]
[1735470015802,2.8,196.97,196.87,8.52917802]
[1735470015993,2.8,196.97,196.88,4.4852678]
[1735470016194,2.8,196.97,196.85,2.8]
[1735470016496,2.8,196.97,196.86,8.52730164]
[1735470016696,2.8,196.97,196.87,8.52730164]
[1735470016895,2.8,196.97,196.85,2.8]
[1735470017100,2.8,196.97,196.86,8.527244]
[1735470017300,2.8,196.97,196.87,8.527244]
[1735470017502,2.8,196.97,196.85,2.8]
[1735470017702,2.8,196.97,196.86,8.52551487]
[1735470018002,2.8,196.97,196.87,8.52551487]
[1735470018204,2.8,196.97,196.85,2.8]
[1735470018407,2.8,196.97,196.86,8.52379125]
[1735470018704,2.8,196.97,196.87,8.52379125]
[1735470018906,2.8,196.97,196.85,2.8]
[1735470019106,2.8,196.97,196.86,8.52309005]
[1735470019303,2.8,196.97,196.87,8.52309005]
[1735470019499,2.8,196.97,196.85,2.8]
[1735470019703,2.8,196.97,196.86,8.52171193]
[1735470019900,2.8,196.97,196.87,8.5217498]
[1735470020104,2.8,196.97,196.85,2.8]
[1735470020303,2.8,196.97,196.86,4.03976515]
[1735470020505,2.8,196.97,196.87,8.52041344]
[1735470020806,2.8,196.97,196.85,2.8]
[1735470021006,2.8,196.97,196.86,8.52036024]
[1735470021208,2.8,196.97,196.87,8.52036024]
[1735470021407,2.8,196.97,196.85,2.8]
[1735470021711,2.8,196.97,196.86,8.51936946]
[1735470022006,2.8,196.97,196.87,8.51936946]
[1735470022206,2.8,196.97,196.85,2.8]
[1735470022405,2.8,196.97,196.86,8.5185101]
[1735470022603,2.8,196.97,196.87,8.5185101]
[1735470022803,2.8,196.97,196.85,2.8]
[1735470023003,2.8,196.97,196.86,8.51841485]
[1735470023305,2.8,196.97,196.87,4.47960678]
[1735470023506,2.8,196.97,196.85,2.8]
[1735470023808,2.8,196.97,196.86,8.51785102]
[1735470024105,2.8,196.97,196.87,4.47931108]
[1735470024309,2.8,196.97,196.85,2.8]
[1735470024510,52.9,197.01,196.86,8.51740234]
[1735470024708,2.8,197.0,196.87,8.51740234]
[1735470024900,2.8,197.0,196.88,8.51740234]
[1735470025104,2.8,197.0,196.85,2.8]
[1735470025309,2.8,197.0,196.86,8.51491042]
[1735470025503,2.8,197.0,196.87,8.51491042]
[1735470025701,2.8,197.0,196.88,8.51491042]
[1735470025904,2.8,197.0,196.85,2.8]
[1735470026106,2.8,197.0,196.86,8.5141015]
[1735470026306,2.8,197.0,196.87,8.5141015]
[1735470026510,2.8,197.0,196.88,4.47732294]
[1735470026711,2.8,197.0,196.85,2.8]
[1735470026912,2.8,197.0,196.86,8.51124138]
[1735470027107,2.8,197.0,196.87,8.51124138]
[1735470027307,2.8,197.0,196.88,4.47581885]
[1735470027606,2.8,197.0,196.85,2.8]
[1735470027809,2.8,197.0,196.86,8.51050772]
[1735470028009,2.8,197.0,196.87,8.51050772]
[1735470028312,2.8,197.0,196.88,4.47543401]
[1735470028508,2.8,196.99,196.89,3.035]
[1735470028704,2.8,197.0,196.9,1.5981]
[1735470028906,4.4101,197.04,196.91,8.5035207]
[1735470029211,1.6101,197.04,196.92,8.5035207]
[1735470029409,2.8,197.03,196.93,8.5035207]
[1735470029607,2.8,197.03,196.9,4.3981]
[1735470029809,2.8,197.03,196.91,8.49918157]
[1735470030008,2.8,197.03,196.92,8.49918157]
[1735470030211,2.8,197.03,196.93,8.49732966]
[1735470030515,2.8,197.03,196.9,4.3981]
[1735470030809,2.8,197.03,196.91,8.49526864]
[1735470031009,2.8,197.03,196.92,8.49526864]
[1735470031208,2.8,197.03,196.9,4.3981]
[1735470031507,2.8,197.03,196.91,8.49229395]
[1735470031708,2.8,197.03,196.92,8.49229395]
[1735470031905,2.8,197.03,196.9,4.3981]
[1735470032108,212.87187766,197.21,196.91,4.46580462]
[1735470032307,144.7145851,197.18,196.92,4.46580462]
[1735470032505,0.82518869,197.15,196.93,8.48283312]
[1735470032811,2.8,197.18,196.94,8.48283312]
[1735470033010,0.82519971,197.15,196.95,11.28283312]
[1735470033213,87.59808205,197.17,196.96,8.48283312]
[1735470033412,87.59808205,197.17,196.97,8.48283312]
[1735470033614,87.59808205,197.17,196.98,13.04203312]
[1735470033809,2.8,197.17,196.99,8.48283312]
[1735470034011,0.825154,197.16,196.98,4.5592]
[1735470034209,0.825154,197.16,196.99,2.8]
[1735470034902,0.82520759,197.15,196.99,2.8]
[1735470035106,2.8,197.17,196.99,2.8]
[1735470035303,0.82522427,197.16,196.99,2.8]
[1735470036106,2.8,197.17,197.0,4.44825153]
[1735470036304,2.8,197.17,196.99,2.8]
[1735470037812,2.8,197.17,196.99,6.81083236]
[1735470038013,2.8,197.17,196.99,2.8]
[1735470041013,1.52,197.19,196.99,2.8]
[1735470041515,2.8,197.2,196.99,2.8]
[1735470041712,0.82506664,197.19,196.99,7.23036851]
[1735470042009,1.4969,197.26,196.99,7.23036851]
[1735470042211,3.6250453,197.25,197.0,4.43036851]
[1735470042409,0.8250453,197.24,197.0,4.42376052]
[1735470042612,0.8250453,197.24,197.01,4.42376052]
[1735470044306,0.8250453,197.24,197.0,4.42376052]
[1735470044505,0.8250453,197.24,197.0,4.41952881]
[1735470044710,0.8250453,197.24,197.0,8.4045956]
[1735470045713,0.8250453,197.24,197.0,4.41952881]
[1735470047517,0.8250453,197.24,196.99,6.78506679]
[1735470047713,0.8250453,197.24,197.0,4.41587249]
[1735470048016,0.8250453,197.24,196.99,2.8]
[1735470048218,0.8250453,197.24,197.0,4.41650359]
[1735470049220,0.8250453,197.24,197.01,4.41650359]
[1735470050314,2.8,197.25,197.01,4.41650359]
[1735470050520,0.82487642,197.24,197.01,4.41650359]
[1735470050723,0.82487642,197.24,197.01,4.41551117]
[1735470050917,0.82487642,197.24,197.0,8.39696585]
[1735470051116,0.82487642,197.24,197.01,8.39696585]
[1735470051315,2.8,197.25,197.02,4.41551117]
[1735470051619,2.8,197.25,197.01,8.39696585]
[1735470051821,2.8,197.25,197.02,4.41551117]
[1735470052021,2.8,197.25,197.01,8.39696585]
[1735470052226,2.8,197.25,197.02,4.41551117]
[1735470052519,2.8,197.25,197.03,4.41551117]
[1735470052720,2.8,197.25,197.04,2.8]
[1735470052921,2.8,197.25,197.05,4.541]
[1735470060724,1.4969,197.26,197.05,4.541]
[1735470060919,2.8,197.24,197.05,4.541]
[1735470061521,1.4969,197.26,197.05,4.541]
[1735470061817,2.8,197.24,197.05,4.541]
[1735470062223,2.8,197.24,197.06,2.8]
[1735470062422,2.8,197.24,197.06,42.13382594]
[1735470062822,1.4969,197.26,197.06,42.13382594]
[1735470063024,2.8,197.28,197.07,4.41975597]
[1735470063224,0.82477734,197.27,197.07,4.41975597]
[1735470063525,1.5852,197.31,197.07,8.40565316]
[1735470063718,0.82469338,197.28,197.07,8.40565316]
[1735470063918,55.92592421,197.29,197.08,4.41975597]
[1735470064117,53.12592421,197.29,197.08,4.41975597]
[1735470064322,2.8,197.34,197.09,19.69975597]
[1735470064522,2.8,197.34,197.1,8.40565316]
[1735470064722,2.8,197.33,197.11,2.8]
[1735470064919,2.8,197.33,197.12,4.6701]
[1735470065123,0.82465219,197.32,197.12,4.6701]
[1735470065523,2.8,197.33,197.12,4.6701]
[1735470065925,0.82465236,197.32,197.13,2.8]
[1735470067329,0.82465236,197.32,197.13,7.05109016]
[1735470067723,1.5243,197.31,197.13,7.05109016]
[1735470067923,0.82465236,197.3,197.13,7.05109016]
[1735470068221,1.5243,197.31,197.13,7.05109016]
[1735470068425,0.82467133,197.3,197.12,4.6701]
[1735470069223,2.8,197.29,197.12,4.6701]
[1735470069531,2.8,197.29,197.12,11.72119016]
[1735470071524,0.8,197.29,197.13,4.04869906]
[1735470071728,2.8,197.33,197.13,4.04869906]
[1735470071922,0.82465302,197.32,197.13,4.04869906]
[1735470072632,0.82465302,197.32,197.13,7.05109016]
[1735470073233,0.82465302,197.32,197.14,8.44789698]
[1735470073422,2.8,197.33,197.13,7.05109016]
[1735470073623,0.82464742,197.32,197.14,8.44781674]
[1735470073928,0.82464742,197.32,197.15,4.44213563]
[1735470074122,0.82464742,197.32,197.16,2.8]
[1735470076035,0.8246471,197.31,197.16,2.8]
[1735470076236,1.5225,197.36,197.17,8.46476467]
[1735470076428,1.5225,197.36,197.18,4.45079575]
[1735470076429,0.82459771,197.35,197.18,4.45079575]
[1735470076630,0.82459771,197.35,197.19,13.03261029]
[1735470076631,3.62459771,197.35,197.19,13.03261029]
[1735470076937,0.82459771,197.34,197.2,4.45079575]
[1735470077134,0.82459771,197.34,197.21,2.8]
[1735470078629,2.8,197.35,197.21,2.8]
[1735470078830,0.82439993,197.34,197.21,2.8]
[1735470079638,55.60601021,197.36,197.21,2.8]
[1735470079934,0.82436529,197.35,197.21,2.8]
[1735470080236,0.82436529,197.35,197.22,4.44686755]
[1735470080431,55.60601021,197.36,197.21,2.8]
[1735470080742,55.60601021,197.36,197.22,4.44525023]
[1735470080931,55.60601021,197.36,197.21,2.8]
[1735470081137,2.8,197.36,197.22,8.45234724]
[1735470081428,2.8,197.36,197.21,2.8]
[1735470081635,2.8,197.36,197.22,8.45012884]
[1735470081834,2.15225769,197.38,197.23,4.44323248]
[1735470082033,2.15225769,197.38,197.24,4.44232867]
[1735470082236,2.15225769,197.38,197.22,39.29869338]
[1735470082433,2.15225769,197.38,197.23,8.4479661]
[1735470082627,2.15225769,197.38,197.24,8.4479661]
[1735470082832,2.15225769,197.38,197.22,39.29869338]
[1735470083034,2.15225769,197.38,197.23,8.44153871]
[1735470083233,4.95225769,197.38,197.24,4.43878582]
[1735470083434,4.95225769,197.38,197.22,39.29869338]
[1735470083635,4.95225769,197.38,197.23,8.44273847]
[1735470083829,4.95225769,197.38,197.24,8.44065431]
[1735470084032,4.95225769,197.38,197.22,39.29869338]
[1735470084232,4.95225769,197.38,197.23,8.43876565]
[1735470084432,4.95225769,197.38,197.24,8.43876565]
[1735470084639,4.95225769,197.38,197.22,39.29869338]
[1735470084838,4.95225769,197.38,197.23,8.43682731]
[1735470085038,4.95225769,197.38,197.24,4.43630829]
[1735470085239,4.95225769,197.38,197.22,39.29869338]
[1735470085540,4.95225769,197.38,197.23,8.43760233]
[1735470085741,4.95225769,197.38,197.22,39.29869338]
[1735470085942,4.95225769,197.38,197.23,8.43554269]
[1735470086145,4.95225769,197.38,197.22,39.29869338]
[1735470086339,2.15225769,197.38,197.22,39.29869338]
[1735470086545,2.8,197.41,197.23,8.4371868]
[1735470086843,2.8,197.42,197.24,8.4371868]
[1735470087044,0.82410269,197.41,197.25,4.43649906]
[1735470087245,0.82410269,197.41,197.26,7.4099]
[1735470088445,2.8,197.44,197.26,7.4099]
[1735470088647,0.82405928,197.43,197.26,7.4099]
[1735470088843,2.8,197.44,197.26,7.4099]
[1735470089047,0.8240598,197.43,197.26,7.4099]
[1735470090043,0.8240598,197.43,197.27,2.8]
[1735470091548,0.8240502,197.42,197.27,2.8]
[1735470091743,0.8240502,197.41,197.27,2.8]
[1735470091949,2.8,197.44,197.27,2.8]
[1735470092143,0.82404702,197.43,197.27,2.8]
[1735470094049,0.82404169,197.42,197.27,2.8]
[1735470094245,0.82404169,197.41,197.27,2.8]
[1735470094454,2.8,197.44,197.27,2.8]
[1735470094650,0.82404169,197.43,197.27,2.8]
[1735470095353,0.82404169,197.43,197.26,4.6099]
[1735470095545,1.4659,197.42,197.26,4.6099]
[1735470095851,0.82404169,197.41,197.2,2.8]
[1735470096053,0.82404169,197.41,197.23,1.5414]
[1735470096642,0.82410745,197.4,197.23,1.5414]
[1735470096846,3.62410745,197.39,197.23,1.5414]
[1735470097043,2.27650745,197.38,197.23,1.5414]
[1735470097349,1.4524,197.38,197.23,1.5414]
[1735470105759,2.8,197.37,197.23,1.5414]
[1735470114068,0.82421223,197.36,197.23,1.5414]
[1735470114569,1.4509,197.35,197.21,44.37835212]
[1735470114865,0.82429499,197.34,197.21,44.37835212]
[1735470115264,0.82429499,197.34,197.2,2.951]
[1735470115973,0.82429499,197.34,197.2,1.4856]
[1735470116269,0.82429499,197.34,197.19,46.15940212]
[1735470116668,0.82429499,197.34,197.19,1.78105]
[1735470117171,1.4509,197.35,197.19,1.78105]
[1735470117369,0.82431185,197.34,197.19,1.78105]
[1735470120079,0.82439232,197.33,197.19,1.78105]
[1735470120267,3.62439232,197.32,197.19,1.78105]
[1735470120465,2.8,197.32,197.19,1.78105]
[1735470123671,2.8,197.32,197.19,1.5927]
[1735470127974,2.8,197.32,197.16,1.5702]
[1735470128181,2.8,197.32,197.17,8.48080419]
[1735470128475,1.4986,197.31,197.18,8.48117884]
[1735470128674,1.4986,197.31,197.16,1.5702]
[1735470128870,1.4986,197.31,197.17,8.4816048]
[1735470129181,1.4986,197.31,197.18,8.4816048]
[1735470129373,1.4986,197.31,197.16,1.5702]
[1735470129574,2.8,197.3,197.17,8.48110654]
[1735470129869,2.8,197.3,197.18,8.48110654]
[1735470130075,2.8,197.3,197.19,8.48110654]
[1735470130275,2.8,197.3,197.16,1.5702]
[1735470130474,2.8,197.3,197.17,8.48048972]
[1735470130677,2.8,197.3,197.18,8.48048972]
[1735470130868,2.8,197.3,197.19,8.48048972]
[1735470131075,2.8,197.3,197.16,1.5702]
[1735470131275,2.8,197.3,197.17,8.48011758]
[1735470131475,2.8,197.3,197.18,8.48011758]
[1735470131675,2.8,197.3,197.19,4.45912934]
[1735470131874,2.8,197.3,197.16,1.5702]
[1735470132079,2.8,197.3,197.17,4.02064879]
[1735470132270,2.8,197.3,197.18,8.47940169]
[1735470132478,2.8,197.3,197.16,1.5702]
[1735470132678,2.8,197.3,197.17,8.47947548]
[1735470132975,2.8,197.3,197.18,8.47947548]
[1735470133176,2.8,197.3,197.16,1.5702]
[1735470133377,2.8,197.3,197.17,8.47945853]
[1735470133576,2.8,197.3,197.16,1.5702]
[1735470133776,2.8,197.3,197.17,8.48048515]
[1735470133980,2.8,197.3,197.16,1.5702]
[1735470134184,2.8,197.3,197.17,8.48048161]
[1735470134373,2.8,197.3,197.16,1.5702]
[1735470134577,2.8,197.3,197.17,8.48067337]
[1735470134776,2.8,197.3,197.16,1.5702]
[1735470134984,2.8,197.3,197.17,4.45958594]
[1735470135184,2.8,197.3,197.16,1.5702]
[1735470136079,1.5468,197.29,197.16,1.5702]
[1735470136475,0.82452332,197.28,197.15,1.4975]
[1735470136772,0.82452332,197.28,197.12,7.05109016]
[1735470137485,1.5468,197.29,197.12,7.05109016]
[1735470137681,0.82472803,197.28,197.12,7.05109016]
[1735470138073,9.04286149,197.28,197.12,7.05109016]
[1735470138382,194.82472803,197.27,197.06,28.20436065]
[1735470138582,0.82472803,197.26,197.06,28.20436065]
[1735470138782,2.8,197.25,197.06,28.20436065]
[1735470138980,0.82472803,197.24,197.06,28.20436065]
[1735470139173,2.40152803,197.24,197.06,28.20436065]
[1735470139374,0.82472803,197.23,197.06,28.20436065]
[1735470139578,0.82472803,197.23,197.03,3.0937]
[1735470140284,0.82500971,197.22,197.03,3.0937]
[1735470140481,0.82500971,197.21,197.03,3.0937]
[1735470140785,3.62500971,197.2,197.03,3.0937]
[1735470140984,0.82500971,197.19,197.03,3.0937]
[1735470141481,0.82504779,197.18,197.03,3.0937]
[1735470141675,0.82504779,197.17,197.03,3.0937]
[1735470141875,2.8,197.2,197.03,3.0937]
[1735470142079,0.82508629,197.19,197.03,3.0937]
[1735470142684,0.82510043,197.18,197.03,3.0937]
[1735470142983,0.82510043,197.17,197.03,3.0937]
[1735470144681,0.82510043,197.16,197.03,3.0937]
[1735470144987,2.82,197.15,197.03,3.0937]
[1735470145178,1.4873,197.21,197.03,3.0937]
[1735470145179,2.82,197.14,197.03,3.0937]